[Event "Argentine Superior Chess Championship 2023"]
[Site "https://www.chess.com"]
[Date "2023.10.30"]
[Round "3"]
[White "Valerga, Diego"]
[Black "Francisco Guecamburu, Candela Be"]
[Result "1-0"]
[Board "5"]
[TimeControl "5400+30"]
[WhiteFideId "100587"]
[BlackFideId "160911"]
[WhiteElo "2428"]
[BlackElo "2345"]
[WhiteTeam "ARG"]
[BlackTeam "ARG"]
[WhiteClock "0:53:42"]
[BlackClock "0:31:42"]

1. d4 {[%clk 1:30:50]}  Nf6 {[%clk 1:30:50]} 2. c4 {[%clk 1:31:11]}  e6 {[%clk 1:31:12]} 3. Nc3 {[%clk 1:31:17]}  Bb4 {[%clk 1:31:32]} 4. Qb3 {[%clk 1:31:12]}  c5 {[%clk 1:27:31]} 5. dxc5 {[%clk 1:31:25]}  Nc6 {[%clk 1:26:17]} 6. Nf3 {[%clk 1:31:44]}  Ne4 {[%clk 1:23:34]} 7. Bd2 {[%clk 1:32:03]}  Nxd2 {[%clk 1:22:41]} 8. Nxd2 {[%clk 1:32:23]}  Bxc5 {[%clk 1:11:47]} 9. g3 {[%clk 1:24:50]}  Nd4 {[%clk 1:01:09]} 10. Qa4 {[%clk 1:20:32]}  Qb6 {[%clk 0:58:49]} 11. O-O-O {[%clk 1:17:25]}  Bb4 {[%clk 0:47:36]} 12. Nde4 {[%clk 1:14:26]}  f5 {[%clk 0:47:59]} 13. c5 {[%clk 1:12:01]}  Bxc5 {[%clk 0:42:01]} 14. Nxc5 {[%clk 1:12:20]}  Nxe2+ {[%clk 0:42:25]} 15. Bxe2 {[%clk 1:12:41]}  Qxc5 {[%clk 0:42:50]} 16. Qd4 {[%clk 1:12:32]}  Qxd4 {[%clk 0:41:42]} 17. Rxd4 {[%clk 1:12:53]}  d5 {[%clk 0:40:52]} 18. f4 {[%clk 1:11:24]}  Kf7 {[%clk 0:38:28]} 19. Kd2 {[%clk 1:10:41]}  Kf6 {[%clk 0:38:16]} 20. Rc1 {[%clk 1:08:57]}  h6 {[%clk 0:37:49]} 21. Na4 {[%clk 1:00:37]}  Bd7 {[%clk 0:33:50]} 22. Nc5 {[%clk 0:59:30]}  Bc6 {[%clk 0:34:08]} 23. Nd3 {[%clk 0:59:07]}  Rhc8 {[%clk 0:34:09]} 24. Ne5 {[%clk 0:56:35]}  g5 {[%clk 0:33:37]} 25. Rd3 {[%clk 0:54:23]}  Be8 {[%clk 0:31:42]} 26. Rdc3 {[%clk 0:53:42]} 1-0

[Event "Argentine Superior Chess Championship 2023"]
[Site "https://www.chess.com"]
[Date "2023.10.30"]
[Round "3"]
[White "Krysa, Leandro"]
[Black "Miranda, Rafael"]
[Result "1-0"]
[Board "6"]
[TimeControl "5400+30"]
[WhiteFideId "116807"]
[BlackFideId "130990"]
[WhiteElo "2546"]
[BlackElo "2343"]
[WhiteTeam "ARG"]
[BlackTeam "ARG"]
[WhiteClock "0:11:46"]
[BlackClock "0:12:58"]

1. d4 {[%clk 1:30:51]}  Nf6 {[%clk 1:30:52]} 2. c4 {[%clk 1:31:00]}  g6 {[%clk 1:31:13]} 3. Nc3 {[%clk 1:31:17]}  d5 {[%clk 1:31:34]} 4. Nf3 {[%clk 1:31:29]}  Bg7 {[%clk 1:31:43]} 5. e3 {[%clk 1:31:26]}  O-O {[%clk 1:28:21]} 6. cxd5 {[%clk 1:31:32]}  Nxd5 {[%clk 1:28:40]} 7. Bc4 {[%clk 1:31:56]}  Nb6 {[%clk 1:23:16]} 8. Bb3 {[%clk 1:32:10]}  Nc6 {[%clk 1:16:09]} 9. O-O {[%clk 1:31:34]}  e5 {[%clk 1:15:07]} 10. d5 {[%clk 1:31:48]}  Na5 {[%clk 1:13:25]} 11. e4 {[%clk 1:31:52]}  Bg4 {[%clk 1:08:02]} 12. h3 {[%clk 1:30:29]}  Bd7 {[%clk 1:03:24]} 13. Bg5 {[%clk 1:23:14]}  Bf6 {[%clk 1:02:19]} 14. Bh6 {[%clk 1:07:14]}  Re8 {[%clk 1:02:39]} 15. Qd3 {[%clk 0:52:31]}  Qe7 {[%clk 0:50:32]} 16. Be3 {[%clk 0:45:28]}  Rec8 {[%clk 0:36:59]} 17. Rfd1 {[%clk 0:36:24]}  Nxb3 {[%clk 0:25:24]} 18. axb3 {[%clk 0:36:49]}  c5 {[%clk 0:19:30]} 19. Nd2 {[%clk 0:23:05]}  Bg5 {[%clk 0:17:24]} 20. d6 {[%clk 0:18:00]}  Qd8 {[%clk 0:17:31]} 21. Nc4 {[%clk 0:17:37]}  Nxc4 {[%clk 0:17:50]} 22. bxc4 {[%clk 0:17:40]}  Bxe3 {[%clk 0:13:13]} 23. Qxe3 {[%clk 0:17:51]}  Rc6 {[%clk 0:12:58]} 24. Nd5 {[%clk 0:11:46]} 1-0

[Event "Argentine Superior Chess Championship 2023"]
[Site "https://www.chess.com"]
[Date "2023.10.31"]
[Round "4"]
[White "Acosta, Pablo Ismael"]
[Black "Miranda, Rafael"]
[Result "1-0"]
[Board "1"]
[TimeControl "5400+30"]
[WhiteFideId "124311"]
[BlackFideId "130990"]
[WhiteElo "2482"]
[BlackElo "2343"]
[WhiteTeam "ARG"]
[BlackTeam "ARG"]
[WhiteClock "0:42:26"]
[BlackClock "0:31:32"]

1. d4 {[%clk 1:30:57]}  Nf6 {[%clk 1:29:53]} 2. Nf3 {[%clk 1:31:02]}  e6 {[%clk 1:29:48]} 3. Bg5 {[%clk 1:29:51]}  d5 {[%clk 1:26:54]} 4. c4 {[%clk 1:30:08]}  h6 {[%clk 1:25:56]} 5. Bxf6 {[%clk 1:28:24]}  Qxf6 {[%clk 1:26:21]} 6. Nc3 {[%clk 1:28:41]}  c6 {[%clk 1:08:39]} 7. e3 {[%clk 1:24:54]}  Nd7 {[%clk 1:06:04]} 8. Be2 {[%clk 1:20:48]}  Bb4 {[%clk 1:03:42]} 9. Rc1 {[%clk 1:19:56]}  O-O {[%clk 0:59:00]} 10. O-O {[%clk 1:20:21]}  dxc4 {[%clk 0:52:25]} 11. Bxc4 {[%clk 1:06:29]}  Bxc3 {[%clk 0:39:44]} 12. Rxc3 {[%clk 1:06:44]}  e5 {[%clk 0:34:25]} 13. dxe5 {[%clk 1:07:02]}  Nxe5 {[%clk 0:34:44]} 14. Nxe5 {[%clk 1:07:27]}  Qxe5 {[%clk 0:35:08]} 15. f4 {[%clk 1:07:54]}  Qe4 {[%clk 0:26:53]} 16. Qe2 {[%clk 1:02:52]}  Re8 {[%clk 0:23:00]} 17. Bd3 {[%clk 0:59:06]}  Qe7 {[%clk 0:17:44]} 18. e4 {[%clk 0:57:02]}  Bd7 {[%clk 0:13:31]} 19. Bc2 {[%clk 0:53:12]}  Rad8 {[%clk 0:12:49]} 20. e5 {[%clk 0:48:38]}  Bc8 {[%clk 0:09:04]} 21. Qe4 {[%clk 0:42:45]}  f5 {[%clk 0:07:32]} 22. Bb3+ {[%clk 0:41:17]}  Kh8 {[%clk 0:07:26]} 23. Qe3 {[%clk 0:41:00]}  a6 {[%clk 0:07:14]} 24. Rf2 {[%clk 0:31:57]}  Be6 {[%clk 0:06:13]} 25. h3 {[%clk 0:27:07]}  Bxb3 {[%clk 0:05:56]} 26. Rxb3 {[%clk 0:27:28]}  Rd1+ {[%clk 0:06:17]} 27. Kh2 {[%clk 0:27:52]}  Red8 {[%clk 0:06:33]} 28. Re2 {[%clk 0:26:40]}  R1d4 {[%clk 0:04:04]} 29. Qg3 {[%clk 0:25:50]}  Kh7 {[%clk 0:03:54]} 30. e6 {[%clk 0:24:59]}  b5 {[%clk 0:03:05]} 31. Re5 {[%clk 0:22:37]}  R8d6 {[%clk 0:02:38]} 32. Rbe3 {[%clk 0:21:32]}  R4d5 {[%clk 0:02:11]} 33. Qe1 {[%clk 0:20:47]}  Rd1 {[%clk 0:02:22]} 34. Qb4 {[%clk 0:19:53]}  R1d4 {[%clk 0:01:57]} 35. Qc5 {[%clk 0:19:41]}  Rxf4 {[%clk 0:00:57]} 36. Qxd6 {[%clk 0:16:31]}  Qxd6 {[%clk 0:01:12]} 37. e7 {[%clk 0:16:57]}  Rf3 {[%clk 0:00:37]} 38. gxf3 {[%clk 0:16:04]}  Qd2+ {[%clk 0:00:45]} 39. Re2 {[%clk 0:14:37]}  Qf4+ {[%clk 0:01:11]} 40. Kg2 {[%clk 0:44:54]}  Qg5+ {[%clk 0:31:32]} 41. Kf1 {[%clk 0:42:26]} 1-0

[Event "Argentine Superior Chess Championship 2023"]
[Site "https://www.chess.com"]
[Date "2023.10.31"]
[Round "4"]
[White "Francisco Guecamburu, Candela Be"]
[Black "Krysa, Leandro"]
[Result "0-1"]
[Board "2"]
[TimeControl "5400+30"]
[WhiteFideId "160911"]
[BlackFideId "116807"]
[WhiteElo "2345"]
[BlackElo "2546"]
[WhiteTeam "ARG"]
[BlackTeam "ARG"]
[WhiteClock "0:23:01"]
[BlackClock "0:19:02"]

1. e4 {[%clk 1:30:53]}  c5 {[%clk 1:30:49]} 2. Nf3 {[%clk 1:31:15]}  Nc6 {[%clk 1:31:04]} 3. d4 {[%clk 1:31:36]}  cxd4 {[%clk 1:31:22]} 4. Nxd4 {[%clk 1:31:59]}  Nf6 {[%clk 1:31:34]} 5. Nc3 {[%clk 1:32:21]}  d6 {[%clk 1:31:52]} 6. Bb5 {[%clk 1:32:33]}  Bd7 {[%clk 1:30:57]} 7. Be3 {[%clk 1:32:55]}  g6 {[%clk 1:22:11]} 8. f3 {[%clk 1:32:56]}  Bg7 {[%clk 1:20:11]} 9. Qd2 {[%clk 1:24:45]}  O-O {[%clk 1:11:43]} 10. Nxc6 {[%clk 1:05:32]}  bxc6 {[%clk 0:57:21]} 11. Bc4 {[%clk 1:00:31]}  Qa5 {[%clk 0:56:31]} 12. O-O {[%clk 0:48:50]}  Rab8 {[%clk 0:54:33]} 13. b3 {[%clk 0:37:21]}  Ng4 {[%clk 0:34:48]} 14. fxg4 {[%clk 0:17:00]}  Bxc3 {[%clk 0:28:51]} 15. Qf2 {[%clk 0:17:16]}  Bxa1 {[%clk 0:26:12]} 16. Rxa1 {[%clk 0:15:08]}  Be6 {[%clk 0:21:45]} 17. Bd3 {[%clk 0:13:30]}  c5 {[%clk 0:19:05]} 18. Bd2 {[%clk 0:10:16]}  Qc7 {[%clk 0:17:31]} 19. Be2 {[%clk 0:07:27]}  c4 {[%clk 0:15:59]} 20. Be3 {[%clk 0:07:50]}  a5 {[%clk 0:14:29]} 21. Bd4 {[%clk 0:07:14]}  cxb3 {[%clk 0:12:35]} 22. cxb3 {[%clk 0:07:29]}  Rb4 {[%clk 0:11:56]} 23. Qe3 {[%clk 0:06:56]}  Rc8 {[%clk 0:10:05]} 24. Ba6 {[%clk 0:05:06]}  Ra8 {[%clk 0:09:38]} 25. Rc1 {[%clk 0:02:54]}  Qd7 {[%clk 0:08:49]} 26. Be2 {[%clk 0:02:45]}  Bxg4 {[%clk 0:06:44]} 27. Bc3 {[%clk 0:03:07]}  Bxe2 {[%clk 0:05:20]} 28. Bxb4 {[%clk 0:03:25]}  axb4 {[%clk 0:05:40]} 29. Qxe2 {[%clk 0:03:49]}  Qa7+ {[%clk 0:05:19]} 30. Kh1 {[%clk 0:03:39]}  Qxa2 {[%clk 0:05:10]} 31. Qc4 {[%clk 0:03:32]}  Qd2 {[%clk 0:03:29]} 32. Rf1 {[%clk 0:03:52]}  e6 {[%clk 0:03:03]} 33. Qc6 {[%clk 0:03:30]}  Rf8 {[%clk 0:02:52]} 34. h3 {[%clk 0:02:04]}  Qc3 {[%clk 0:01:14]} 35. Qxd6 {[%clk 0:00:42]}  Qxb3 {[%clk 0:01:42]} 36. Qb6 {[%clk 0:00:33]}  Qc4 {[%clk 0:01:10]} 37. Rb1 {[%clk 0:00:39]}  Qxe4 {[%clk 0:01:29]} 38. Rxb4 {[%clk 0:01:05]}  Qe1+ {[%clk 0:01:36]} 39. Kh2 {[%clk 0:01:33]}  Qe5+ {[%clk 0:01:15]} 40. Kh1 {[%clk 0:31:23]}  Ra8 {[%clk 0:30:46]} 41. Rb1 {[%clk 0:31:20]}  Ra1 {[%clk 0:25:53]} 42. Rxa1 {[%clk 0:31:02]}  Qxa1+ {[%clk 0:26:19]} 43. Kh2 {[%clk 0:31:26]}  h5 {[%clk 0:24:33]} 44. Qd6 {[%clk 0:28:58]}  Kg7 {[%clk 0:24:05]} 45. Qc7 {[%clk 0:27:51]}  Qd4 {[%clk 0:23:42]} 46. Qe7 {[%clk 0:27:35]}  e5 {[%clk 0:21:27]} 47. h4 {[%clk 0:26:47]}  e4 {[%clk 0:20:31]} 48. g4 {[%clk 0:22:42]}  Qf2+ {[%clk 0:19:51]} 49. Kh1 {[%clk 0:23:01]}  Qf6 {[%clk 0:19:02]} 0-1

[Event "Argentine Superior Chess Championship 2023"]
[Site "https://www.chess.com"]
[Date "2023.10.31"]
[Round "4"]
[White "Gomez, Carlos David"]
[Black "Valerga, Diego"]
[Result "1/2-1/2"]
[Board "3"]
[TimeControl "5400+30"]
[WhiteFideId "114669"]
[BlackFideId "100587"]
[WhiteElo "2331"]
[BlackElo "2428"]
[WhiteTeam "ARG"]
[BlackTeam "ARG"]
[WhiteClock "0:01:58"]
[BlackClock "0:15:36"]

1. e4 {[%clk 1:30:45]}  c5 {[%clk 1:30:53]} 2. Nf3 {[%clk 1:31:03]}  e6 {[%clk 1:31:15]} 3. d4 {[%clk 1:31:27]}  cxd4 {[%clk 1:31:38]} 4. Nxd4 {[%clk 1:31:51]}  Nf6 {[%clk 1:30:51]} 5. Nc3 {[%clk 1:32:12]}  d6 {[%clk 1:31:15]} 6. g4 {[%clk 1:32:26]}  h6 {[%clk 1:31:37]} 7. h3 {[%clk 1:32:42]}  Nc6 {[%clk 1:29:41]} 8. Bg2 {[%clk 1:32:14]}  Bd7 {[%clk 1:27:13]} 9. b3 {[%clk 1:16:36]}  a6 {[%clk 1:00:22]} 10. Bb2 {[%clk 1:16:39]}  Be7 {[%clk 0:59:49]} 11. Qd2 {[%clk 1:05:59]}  Qc7 {[%clk 0:54:30]} 12. O-O-O {[%clk 0:59:11]}  O-O-O {[%clk 0:46:54]} 13. Rhe1 {[%clk 0:44:00]}  Kb8 {[%clk 0:40:05]} 14. Kb1 {[%clk 0:39:31]}  Nxd4 {[%clk 0:36:16]} 15. Qxd4 {[%clk 0:39:49]}  Rc8 {[%clk 0:35:47]} 16. f4 {[%clk 0:37:23]}  Rhd8 {[%clk 0:35:21]} 17. Qf2 {[%clk 0:34:21]}  Be8 {[%clk 0:27:57]} 18. Rd3 {[%clk 0:28:39]}  Nd7 {[%clk 0:27:28]} 19. Red1 {[%clk 0:23:02]}  g5 {[%clk 0:23:25]} 20. f5 {[%clk 0:15:50]}  Bf6 {[%clk 0:20:13]} 21. Qd2 {[%clk 0:09:18]}  Nc5 {[%clk 0:12:52]} 22. Nd5 {[%clk 0:08:12]}  exd5 {[%clk 0:13:11]} 23. Bxf6 {[%clk 0:08:36]}  Nxd3 {[%clk 0:13:17]} 24. Bxd8 {[%clk 0:07:47]}  Rxd8 {[%clk 0:11:48]} 25. Qxd3 {[%clk 0:07:47]}  dxe4 {[%clk 0:12:07]} 26. Bxe4 {[%clk 0:08:09]}  Qe7 {[%clk 0:06:02]} 27. Bd5 {[%clk 0:08:15]}  Qe5 {[%clk 0:06:12]} 28. Qd2 {[%clk 0:08:19]}  Rc8 {[%clk 0:05:33]} 29. Re1 {[%clk 0:08:22]}  Qf6 {[%clk 0:05:45]} 30. Re4 {[%clk 0:02:51]}  Bc6 {[%clk 0:05:07]} 31. Rb4 {[%clk 0:01:13]}  Rc7 {[%clk 0:04:24]} 32. Rd4 {[%clk 0:00:57]}  Qe5 {[%clk 0:04:09]} 33. Rd3 {[%clk 0:00:55]}  Rc8 {[%clk 0:01:14]} 34. a4 {[%clk 0:00:50]}  Bxd5 {[%clk 0:01:15]} 35. Rxd5 {[%clk 0:01:12]}  Qg3 {[%clk 0:01:08]} 36. Rd3 {[%clk 0:01:18]}  Qg1+ {[%clk 0:01:06]} 37. Kb2 {[%clk 0:01:35]}  Re8 {[%clk 0:00:44]} 38. Rxd6 {[%clk 0:01:16]}  Re1 {[%clk 0:01:06]} 39. Rd8+ {[%clk 0:00:53]}  Ka7 {[%clk 0:01:30]} 40. Qd4+ {[%clk 0:30:52]}  Qxd4+ {[%clk 0:31:52]} 41. Rxd4 {[%clk 0:31:16]}  Re3 {[%clk 0:30:53]} 42. Rd3 {[%clk 0:29:29]}  Re4 {[%clk 0:30:12]} 43. Rd7 {[%clk 0:08:24]}  Re3 {[%clk 0:25:58]} 44. Rxf7 {[%clk 0:08:01]}  Rxh3 {[%clk 0:26:21]} 45. Rc7 {[%clk 0:03:29]}  h5 {[%clk 0:20:39]} 46. Rc4 {[%clk 0:01:22]}  h4 {[%clk 0:18:24]} 47. Rc8 {[%clk 0:01:33]}  Rg3 {[%clk 0:18:28]} 48. f6 {[%clk 0:01:51]}  Rf3 {[%clk 0:18:51]} 49. Rg8 {[%clk 0:01:02]}  Rxf6 {[%clk 0:19:11]} 50. Rxg5 {[%clk 0:01:27]}  Rh6 {[%clk 0:18:04]} 51. Rf5 {[%clk 0:01:46]}  h3 {[%clk 0:18:19]} 52. Rf1 {[%clk 0:02:00]}  h2 {[%clk 0:18:36]} 53. Rh1 {[%clk 0:02:26]}  Rg6 {[%clk 0:15:02]} 54. Rxh2 {[%clk 0:02:51]}  Rxg4 {[%clk 0:15:28]} 55. Rh5 {[%clk 0:03:14]}  Rg3 {[%clk 0:15:13]} 56. Rf5 {[%clk 0:03:14]}  Kb6 {[%clk 0:14:33]} 57. a5+ {[%clk 0:02:24]}  Kc7 {[%clk 0:14:55]} 58. Rc5+ {[%clk 0:02:41]}  Kb8 {[%clk 0:15:17]} 59. Ka3 {[%clk 0:03:03]}  Rg4 {[%clk 0:15:34]} 60. c4 {[%clk 0:03:03]}  Ka7 {[%clk 0:14:51]} 61. Rc8 {[%clk 0:03:20]}  Rg5 {[%clk 0:14:26]} 62. Kb4 {[%clk 0:03:43]}  Rg3 {[%clk 0:14:43]} 63. Rd8 {[%clk 0:04:08]}  Rh3 {[%clk 0:14:51]} 64. Ka4 {[%clk 0:04:11]}  Rc3 {[%clk 0:15:07]} 65. Rc8 {[%clk 0:04:18]}  Rc1 {[%clk 0:14:15]} 66. Kb4 {[%clk 0:03:58]}  Rh1 {[%clk 0:14:07]} 67. Rd8 {[%clk 0:03:25]}  Rh3 {[%clk 0:13:31]} 68. Rd7 {[%clk 0:01:20]}  Rg3 {[%clk 0:13:44]} 69. Ka4 {[%clk 0:00:47]}  Rc3 {[%clk 0:14:03]} 70. Ka3 {[%clk 0:00:46]}  Rh3 {[%clk 0:14:19]} 71. Kb2 {[%clk 0:01:09]}  Rh5 {[%clk 0:13:00]} 72. Rd5 {[%clk 0:00:39]}  Rh3 {[%clk 0:13:08]} 73. Kc2 {[%clk 0:01:03]}  Kb8 {[%clk 0:13:11]} 74. Rd3 {[%clk 0:01:26]}  Rh5 {[%clk 0:13:33]} 75. b4 {[%clk 0:01:43]}  Rh4 {[%clk 0:13:33]} 76. Kc3 {[%clk 0:02:06]}  Kc7 {[%clk 0:13:56]} 77. Re3 {[%clk 0:02:31]}  Rf4 {[%clk 0:14:02]} 78. Kd3 {[%clk 0:02:57]}  Rg4 {[%clk 0:14:24]} 79. Re4 {[%clk 0:03:13]}  Rg1 {[%clk 0:13:35]} 80. Kd4 {[%clk 0:03:36]}  Kd6 {[%clk 0:13:27]} 81. Re2 {[%clk 0:02:00]}  Rg4+ {[%clk 0:13:44]} 82. Kd3 {[%clk 0:02:17]}  Rg1 {[%clk 0:13:48]} 83. Rh2 {[%clk 0:02:30]}  Rg3+ {[%clk 0:14:00]} 84. Kc2 {[%clk 0:02:52]}  Kc7 {[%clk 0:14:00]} 85. Rh7+ {[%clk 0:02:51]}  Kc6 {[%clk 0:14:13]} 86. Rh6+ {[%clk 0:03:15]}  Kc7 {[%clk 0:14:33]} 87. Rb6 {[%clk 0:01:46]}  Rg2+ {[%clk 0:14:05]} 88. Kb3 {[%clk 0:01:59]}  Rg3+ {[%clk 0:14:24]} 89. Ka4 {[%clk 0:01:38]}  Rc3 {[%clk 0:12:42]} 90. c5 {[%clk 0:02:01]}  Rg3 {[%clk 0:12:55]} 91. Rh6 {[%clk 0:00:58]}  Rf3 {[%clk 0:13:09]} 92. Rg6 {[%clk 0:00:50]}  Rh3 {[%clk 0:13:28]} 93. Rg7+ {[%clk 0:00:56]}  Kc6 {[%clk 0:13:47]} 94. Rg6+ {[%clk 0:01:02]}  Kc7 {[%clk 0:14:10]} 95. Rb6 {[%clk 0:01:24]}  Rg3 {[%clk 0:14:17]} 96. c6 {[%clk 0:01:34]}  bxc6 {[%clk 0:14:41]} 97. Rxa6 {[%clk 0:01:59]}  Kb7 {[%clk 0:15:02]} 98. Rb6+ {[%clk 0:02:00]}  Kc7 {[%clk 0:15:27]} 99. b5 {[%clk 0:01:59]}  Rg4+ {[%clk 0:15:36]} 100. Ka3 {[%clk 0:01:58]} 1/2-1/2

[Event "Argentine Superior Chess Championship 2023"]
[Site "https://www.chess.com"]
[Date "2023.10.31"]
[Round "4"]
[White "Perez Ponsa, Federico"]
[Black "Peralta, Fernando"]
[Result "1/2-1/2"]
[Board "4"]
[TimeControl "5400+30"]
[WhiteFideId "117927"]
[BlackFideId "105309"]
[WhiteElo "2527"]
[BlackElo "2580"]
[WhiteTeam "ARG"]
[BlackTeam "ARG"]
[WhiteClock "0:32:21"]
[BlackClock "0:31:41"]

1. d4 {[%clk 1:27:03]}  Nf6 {[%clk 1:30:12]} 2. c4 {[%clk 1:27:28]}  e6 {[%clk 1:30:30]} 3. Nf3 {[%clk 1:27:52]}  b6 {[%clk 1:28:33]} 4. g3 {[%clk 1:28:00]}  Bb7 {[%clk 1:28:48]} 5. Bg2 {[%clk 1:28:24]}  Bb4+ {[%clk 1:28:54]} 6. Bd2 {[%clk 1:28:07]}  Bxd2+ {[%clk 1:29:17]} 7. Qxd2 {[%clk 1:21:39]}  O-O {[%clk 1:29:34]} 8. O-O {[%clk 1:17:06]}  d6 {[%clk 1:29:43]} 9. Nc3 {[%clk 1:15:21]}  Ne4 {[%clk 1:29:44]} 10. Nxe4 {[%clk 1:12:19]}  Bxe4 {[%clk 1:30:07]} 11. Qe3 {[%clk 1:11:28]}  Bb7 {[%clk 1:27:21]} 12. Qd3 {[%clk 1:04:35]}  f5 {[%clk 1:24:55]} 13. Qe3 {[%clk 1:01:26]}  Re8 {[%clk 1:16:55]} 14. c5 {[%clk 0:54:49]}  Nd7 {[%clk 1:14:26]} 15. b4 {[%clk 0:53:25]}  Bd5 {[%clk 1:10:09]} 16. Rfc1 {[%clk 0:49:09]}  a5 {[%clk 0:56:14]} 17. cxd6 {[%clk 0:42:18]}  cxd6 {[%clk 0:56:37]} 18. b5 {[%clk 0:42:38]}  Nf6 {[%clk 0:55:25]} 19. a4 {[%clk 0:38:58]}  Qd7 {[%clk 0:51:34]} 20. Nd2 {[%clk 0:34:21]}  Rac8 {[%clk 0:49:43]} 21. Qa3 {[%clk 0:31:21]}  Ne4 {[%clk 0:28:43]} 22. Nxe4 {[%clk 0:27:15]}  Bxe4 {[%clk 0:29:06]} 23. Bxe4 {[%clk 0:22:11]}  fxe4 {[%clk 0:29:30]} 24. Ra2 {[%clk 0:21:27]}  Rc7 {[%clk 0:18:49]} 25. Rxc7 {[%clk 0:16:59]}  Qxc7 {[%clk 0:18:16]} 26. Qb3 {[%clk 0:17:24]}  Qc1+ {[%clk 0:12:40]} 27. Kg2 {[%clk 0:17:49]}  d5 {[%clk 0:13:07]} 28. Rc2 {[%clk 0:09:28]}  Qd1 {[%clk 0:07:27]} 29. Qc3 {[%clk 0:09:41]}  h6 {[%clk 0:04:26]} 30. Qc6 {[%clk 0:07:54]}  Kf7 {[%clk 0:04:16]} 31. Qc7+ {[%clk 0:07:22]}  Kg6 {[%clk 0:04:03]} 32. Qd7 {[%clk 0:06:19]}  Qxc2 {[%clk 0:03:09]} 33. Qxe8+ {[%clk 0:06:44]}  Kh7 {[%clk 0:02:04]} 34. Qxe6 {[%clk 0:05:03]}  Qxe2 {[%clk 0:02:30]} 35. Qf5+ {[%clk 0:04:50]}  Kh8 {[%clk 0:01:42]} 36. Kh3 {[%clk 0:03:17]}  g5 {[%clk 0:00:47]} 37. Qg6 {[%clk 0:01:26]}  Qf1+ {[%clk 0:00:48]} 38. Kg4 {[%clk 0:01:54]}  Qe2+ {[%clk 0:01:09]} 39. Kh3 {[%clk 0:01:56]}  Qf1+ {[%clk 0:01:36]} 40. Kg4 {[%clk 0:32:21]}  Qe2+ {[%clk 0:31:41]} 1/2-1/2

[Event "Argentine Superior Chess Championship 2023"]
[Site "https://www.chess.com"]
[Date "2023.10.31"]
[Round "4"]
[White "Tokman, Ariel"]
[Black "Tristan, Leonardo"]
[Result "1-0"]
[Board "5"]
[TimeControl "5400+30"]
[WhiteFideId "117420"]
[BlackFideId "113816"]
[WhiteElo "2306"]
[BlackElo "2523"]
[WhiteTeam "ARG"]
[BlackTeam "ARG"]
[WhiteClock "0:01:38"]
[BlackClock "0:01:36"]

1. d4 {[%clk 1:30:48]}  f5 {[%clk 1:28:30]} 2. Nf3 {[%clk 1:31:09]}  Nf6 {[%clk 1:28:52]} 3. g3 {[%clk 1:31:35]}  g6 {[%clk 1:29:05]} 4. Bg2 {[%clk 1:31:59]}  Bg7 {[%clk 1:29:30]} 5. O-O {[%clk 1:32:24]}  O-O {[%clk 1:29:48]} 6. c4 {[%clk 1:32:47]}  d6 {[%clk 1:30:11]} 7. Nc3 {[%clk 1:33:11]}  Qe8 {[%clk 1:27:32]} 8. Nd5 {[%clk 1:31:51]}  Nxd5 {[%clk 1:27:19]} 9. cxd5 {[%clk 1:32:15]}  Nd7 {[%clk 1:27:44]} 10. Ng5 {[%clk 1:15:11]}  Nb6 {[%clk 1:27:06]} 11. a4 {[%clk 1:04:36]}  c6 {[%clk 1:26:02]} 12. Ne6 {[%clk 0:57:22]}  Bxe6 {[%clk 1:21:39]} 13. dxe6 {[%clk 0:57:50]}  Qc8 {[%clk 0:57:55]} 14. a5 {[%clk 0:43:56]}  Nd5 {[%clk 0:57:53]} 15. Qb3 {[%clk 0:43:42]}  Nc7 {[%clk 0:45:39]} 16. Bg5 {[%clk 0:41:36]}  d5 {[%clk 0:32:56]} 17. Bxe7 {[%clk 0:26:45]}  Re8 {[%clk 0:33:21]} 18. Ba3 {[%clk 0:19:32]}  Bxd4 {[%clk 0:14:53]} 19. Rfd1 {[%clk 0:15:23]}  Bf6 {[%clk 0:07:58]} 20. Rac1 {[%clk 0:11:07]}  a6 {[%clk 0:08:23]} 21. Bxd5 {[%clk 0:08:34]}  Nxd5 {[%clk 0:07:01]} 22. Rxd5 {[%clk 0:08:56]}  Qxe6 {[%clk 0:07:26]} 23. Rd3 {[%clk 0:09:05]}  Qxb3 {[%clk 0:02:59]} 24. Rxb3 {[%clk 0:09:30]}  Rxe2 {[%clk 0:03:22]} 25. Rxb7 {[%clk 0:09:05]}  Bd4 {[%clk 0:03:00]} 26. Bc5 {[%clk 0:08:52]}  Rxb2 {[%clk 0:02:36]} 27. Rd7 {[%clk 0:05:43]}  Be5 {[%clk 0:01:36]} 28. Bb6 {[%clk 0:05:47]}  Rc8 {[%clk 0:00:55]} 29. Re1 {[%clk 0:04:56]}  Bc3 {[%clk 0:00:45]} 30. Ree7 {[%clk 0:05:00]}  Bf6 {[%clk 0:00:42]} 31. Rf7 {[%clk 0:04:47]}  Be5 {[%clk 0:00:40]} 32. Rxh7 {[%clk 0:04:35]}  c5 {[%clk 0:00:59]} 33. Rhe7 {[%clk 0:02:41]}  Bd4 {[%clk 0:01:13]} 34. Rxd4 {[%clk 0:01:54]}  cxd4 {[%clk 0:01:37]} 35. Bxd4 {[%clk 0:02:19]}  Rb1+ {[%clk 0:01:24]} 36. Kg2 {[%clk 0:02:43]}  Rc6 {[%clk 0:01:42]} 37. h4 {[%clk 0:02:12]}  Rb4 {[%clk 0:01:39]} 38. Bb6 {[%clk 0:02:21]}  f4 {[%clk 0:01:47]} 39. Ra7 {[%clk 0:02:16]}  Rf6 {[%clk 0:00:38]} 40. Rxa6 {[%clk 0:31:28]}  f3+ {[%clk 0:30:45]} 41. Kh3 {[%clk 0:28:23]}  Re6 {[%clk 0:23:36]} 42. Ra8+ {[%clk 0:22:00]}  Kg7 {[%clk 0:22:41]} 43. Rd8 {[%clk 0:20:41]}  Rb3 {[%clk 0:07:04]} 44. Rd7+ {[%clk 0:18:24]}  Kf6 {[%clk 0:06:23]} 45. Bd4+ {[%clk 0:17:44]}  Kf5 {[%clk 0:06:48]} 46. Rf7+ {[%clk 0:18:06]}  Ke4 {[%clk 0:07:12]} 47. Rf4+ {[%clk 0:18:31]}  Kd5 {[%clk 0:07:27]} 48. Bb6 {[%clk 0:18:22]}  Re4 {[%clk 0:06:38]} 49. Kg4 {[%clk 0:17:50]}  Rxf4+ {[%clk 0:06:27]} 50. Kxf4 {[%clk 0:18:13]}  Ke6 {[%clk 0:06:45]} 51. Ke4 {[%clk 0:17:32]}  Ra3 {[%clk 0:04:43]} 52. Kd4 {[%clk 0:16:52]}  Ra2 {[%clk 0:04:35]} 53. Kc4 {[%clk 0:13:51]}  Rc2+ {[%clk 0:04:34]} 54. Kd3 {[%clk 0:09:28]}  Ra2 {[%clk 0:04:59]} 55. Ke4 {[%clk 0:09:20]}  Ra3 {[%clk 0:04:36]} 56. g4 {[%clk 0:09:20]}  Rb3 {[%clk 0:02:36]} 57. Kf4 {[%clk 0:09:32]}  Ra3 {[%clk 0:02:30]} 58. Kg5 {[%clk 0:04:25]}  Ra4 {[%clk 0:00:53]} 59. h5 {[%clk 0:04:04]}  gxh5 {[%clk 0:01:18]} 60. gxh5 {[%clk 0:04:31]}  Kf7 {[%clk 0:00:38]} 61. h6 {[%clk 0:03:55]}  Rb4 {[%clk 0:00:43]} 62. h7 {[%clk 0:02:23]}  Rb5+ {[%clk 0:00:40]} 63. Kh6 {[%clk 0:02:14]}  Rb4 {[%clk 0:00:39]} 64. h8=N+ {[%clk 0:02:20]}  Kf6 {[%clk 0:01:03]} 65. Bd8+ {[%clk 0:02:37]}  Ke6 {[%clk 0:01:02]} 66. Ng6 {[%clk 0:02:19]}  Rg4 {[%clk 0:01:09]} 67. Kh5 {[%clk 0:02:28]}  Rg2 {[%clk 0:01:19]} 68. Bb6 {[%clk 0:01:40]}  Kf6 {[%clk 0:01:31]} 69. Bd4+ {[%clk 0:01:29]}  Kf5 {[%clk 0:01:50]} 70. Nh4+ {[%clk 0:00:58]}  Ke4 {[%clk 0:02:15]} 71. Be3 {[%clk 0:00:55]}  Rg8 {[%clk 0:00:35]} 72. a6 {[%clk 0:01:11]}  Rh8+ {[%clk 0:00:57]} 73. Kg5 {[%clk 0:01:32]}  Rg8+ {[%clk 0:01:17]} 74. Kf6 {[%clk 0:01:39]}  Rh8 {[%clk 0:01:36]} 75. a7 {[%clk 0:01:38]} 1-0